bitfinex-derivatives/quotes_ETHF0:USTF0_20250923
["timestamp","ask_amount","ask_price","bid_price","bid_amount"]
[1758646993555,0.9461,4182.6,4182.5,0.1218]
[1758646993750,0.9461,4182.6,4182.5,0.2436]
[1758646995757,0.5455,4182.4,4182.3,0.3708]
[1758646995956,0.9461,4182.4,4182.3,0.3708]
[1758646996259,0.4006,4182.3,4182.1,3.2078]
[1758646996461,0.5455,4182.2,4182.1,3.2078]
[1758646996657,0.9461,4182.2,4182.1,3.2078]
[1758646997055,1.37624,4182.2,4182.1,3.2078]
[1758646997251,1.37633,4181.3,4181.2,3.2078]
[1758646997449,0.9461,4180.8,4180.7,3.2078]
[1758646998057,0.9461,4180.8,4180.7,3.3296]
[1758646998258,0.9461,4180.8,4180.7,3.4514]
[1758646999261,0.9461,4180.8,4180.7,3.7004]
[1758646999853,0.6701,4180.8,4180.7,3.7004]
[1758647000258,0.9461,4180.8,4180.7,3.4514]
[1758647000456,0.9461,4180.8,4180.7,3.5786]
[1758647000865,0.9461,4180.8,4180.7,3.4568]
[1758647001168,0.7052,4180.5,4180.4,0.249]
[1758647001369,1.1058,4180.5,4180.4,0.249]
[1758647001667,0.4006,4180.4,4180.1,3.2078]
[1758647001867,0.9461,4180.4,4180.3,0.249]
[1758647002369,0.9461,4180.4,4180.3,0.4926]
[1758647003064,0.3964,4180.9,4180.3,0.249]
[1758647003268,0.6615,4180.9,4180.8,0.65768]
[1758647003469,0.9148,4180.9,4180.8,0.4764]
[1758647004161,0.3964,4180.8,4180.1,3.2078]
[1758647004361,0.3964,4180.2,4180.1,3.93665]
[1758647004567,0.3964,4180.2,4180.1,4.11455]
[1758647004568,0.6615,4180.2,4180.1,4.11455]
[1758647004965,0.5589,4180.5,4180.4,0.65772]
[1758647005166,0.5589,4180.5,4180.4,0.90672]
[1758647005364,4.029,4181.0,4180.9,0.43027]
[1758647005569,0.3964,4181.0,4180.9,0.65767]
[1758647005768,3.7639,4181.5,4181.4,0.65762]
[1758647005975,3.7639,4181.5,4181.4,0.90662]
[1758647006168,4.029,4181.5,4181.4,0.4764]
[1758647006473,1.0745,4181.5,4181.4,0.4764]
[1758647007771,1.0745,4181.5,4181.4,0.249]
[1758647009468,0.6809,4181.0,4180.9,0.43027]
[1758647009668,0.3964,4180.9,4180.6,3.2078]
[1758647009872,0.5184,4180.8,4180.7,0.249]
[1758647010072,0.9148,4180.8,4180.7,0.3627]
[1758647010973,0.9148,4180.8,4180.7,0.249]
[1758647011169,0.9148,4180.8,4180.7,0.3627]
[1758647011367,0.9148,4180.8,4180.7,0.249]
[1758647011771,0.9148,4180.8,4180.7,0.67929]
[1758647012168,0.9148,4180.8,4180.7,0.249]
[1758647012368,0.9148,4180.8,4180.7,0.67929]
[1758647013475,0.3964,4180.8,4180.7,0.90669]
[1758647013872,0.6615,4180.8,4180.7,0.90669]
[1758647014175,0.5589,4181.0,4180.9,0.72877]
[1758647014377,0.824,4181.0,4180.9,0.90667]
[1758647015669,1.0773,4181.0,4180.9,0.4764]
[1758647015876,1.0773,4181.0,4180.9,0.90667]
[1758647016579,1.0773,4181.0,4180.9,0.67927]
[1758647018474,1.0773,4181.0,4180.9,0.79297]
[1758647018779,1.0773,4181.0,4180.9,0.90667]
[1758647018975,0.8212,4181.5,4181.4,0.65762]
[1758647019280,0.3964,4181.5,4181.4,0.97772]
[1758647019479,0.9148,4181.9,4181.8,0.65758]
[1758647019779,0.9148,4181.9,4181.8,0.90658]
[1758647019979,0.9148,4181.9,4181.8,4.11438]
[1758647020181,0.3964,4182.4,4182.3,0.2274]
[1758647020376,0.3964,4182.4,4182.3,0.90653]
[1758647020571,0.9148,4182.4,4182.3,0.4764]
[1758647020774,0.1625,4182.0,4181.8,3.2078]
[1758647020975,1.0773,4182.0,4181.9,0.79287]
[1758647021269,0.824,4182.5,4182.4,0.65752]
[1758647021470,0.5589,4182.5,4182.4,0.90652]
[1758647021674,0.6809,4183.0,4182.9,0.1137]
[1758647021874,0.5184,4182.4,4182.3,3.2078]
[1758647022173,0.9148,4182.4,4182.3,3.4568]
[1758647022373,0.9148,4182.4,4182.3,3.5705]
[1758647023474,0.9148,4182.4,4182.3,3.3215]
[1758647023675,0.9148,4182.4,4182.3,0.249]
[1758647024580,0.9148,4182.4,4182.3,0.3627]
[1758647024976,0.9148,4182.4,4182.3,0.249]
[1758647025676,0.824,4182.0,4181.9,0.65757]
[1758647025979,1.0773,4182.0,4181.9,0.90657]
[1758647026572,1.0773,4182.0,4181.9,0.79287]
[1758647026767,1.0773,4182.0,4181.9,0.3627]
[1758647027073,1.0773,4182.0,4181.9,0.249]
[1758647027475,1.0773,4182.0,4181.9,0.67917]
[1758647027977,0.3964,4181.9,4181.2,3.2078]
[1758647028175,0.3964,4181.3,4181.2,3.2078]
[1758647028475,0.9148,4181.3,4181.2,3.2078]
[1758647029878,0.9148,4181.3,4181.1,0.249]
[1758647030580,0.9148,4181.2,4181.1,0.79295]
[1758647032284,0.9148,4181.2,4181.1,0.90665]
[1758647032472,0.1625,4181.5,4181.4,0.65762]
[1758647032671,1.0773,4181.5,4181.4,3.6842]
[1758647032872,1.0773,4181.5,4181.4,4.11442]
[1758647035179,1.0773,4181.5,4181.4,0.249]
[1758647035369,0.1581,4181.0,4180.9,3.2998]
[1758647035574,0.1581,4181.0,4180.4,3.2078]
[1758647035575,0.6677,4180.5,4180.4,3.2078]
[1758647035782,1.0584,4180.5,4180.2,0.249]
[1758647035988,1.0584,4180.5,4179.9,3.2078]
[1758647035989,1.48876,4180.0,4179.9,3.2078]
[1758647036284,0.9003,4179.4,4179.3,3.2078]
[1758647037082,5.9003,4179.4,4178.0,1.07641]
[1758647037280,0.9003,4178.9,4178.8,3.2078]
[1758647037678,0.9003,4178.9,4178.8,3.2998]
[1758647037883,0.9003,4178.9,4178.8,3.2078]
[1758647038776,0.9003,4178.9,4178.8,3.4568]
[1758647038983,0.9003,4178.9,4178.8,3.5488]
[1758647039184,0.3907,4178.9,4178.8,3.6408]
[1758647039383,0.3907,4178.9,4178.8,3.6983]
[1758647039882,0.3907,4178.9,4178.8,3.6408]
[1758647040080,0.1581,4179.5,4178.8,3.6408]
[1758647040081,0.1581,4179.5,4179.4,0.43043]
[1758647040279,0.3907,4179.5,4179.4,0.67193]
[1758647040479,0.3907,4179.5,4179.4,0.61443]
[1758647040480,0.5488,4179.5,4179.4,0.61443]
[1758647040686,0.8126,4179.5,4179.4,0.52243]
[1758647040883,0.5488,4179.5,4179.4,0.61443]
[1758647041081,0.8126,4180.0,4179.9,0.52237]
[1758647041283,1.0584,4180.0,4179.8,0.67938]
[1758647041478,0.9003,4179.9,4179.8,0.67938]
[1758647041674,0.6545,4179.9,4179.8,0.77138]
[1758647041880,0.6545,4179.9,4179.8,0.67938]
[1758647042079,0.9003,4179.9,4179.8,0.67938]
[1758647042580,0.9003,4179.9,4179.8,0.249]
[1758647043382,0.1581,4179.5,4179.3,3.2078]
[1758647043583,0.3907,4178.9,4178.8,3.2078]
[1758647045280,0.82118,4178.9,4178.7,0.249]
[1758647045481,0.1581,4178.5,4178.4,0.43052]
[1758647045681,0.5488,4178.5,4178.4,0.67952]
[1758647046184,0.5488,4178.5,4178.4,0.43052]
[1758647046489,0.5488,4178.5,4178.4,0.86352]
[1758647046786,1.0584,4178.5,4178.4,0.433]
[1758647047092,0.6677,4178.5,4178.3,3.2078]
[1758647047294,1.0584,4178.0,4177.9,0.54651576]
[1758647047487,1.0584,4178.0,4177.9,0.88751576]
[1758647047687,0.8126,4178.0,4177.9,0.88751576]
[1758647048092,0.8126,4178.0,4177.9,0.63851576]
[1758647048292,0.8126,4178.0,4177.9,0.88751576]
[1758647048793,1.0584,4178.0,4177.9,0.79551576]
[1758647049994,0.5488,4178.0,4177.9,0.63851576]
[1758647050295,0.5488,4178.0,4177.9,0.88751576]
[1758647050499,0.1581,4178.5,4178.4,0.61453]
[1758647050500,0.5488,4178.5,4178.4,0.61453]
[1758647050697,0.5488,4178.5,4178.4,4.07133]
[1758647050994,0.1581,4179.0,4178.9,0.43048]
[1758647051184,3.2078,4179.3,4179.2,0.43045]
[1758647051384,3.2078,4179.3,4179.2,0.67945]
[1758647051585,3.5852,4179.3,4179.2,0.67945]
[1758647051788,3.5852,4179.3,4179.2,0.43045]
[1758647051984,0.3774,4179.3,4179.2,3.63825]
[1758647052790,0.3774,4179.3,4179.2,3.88725]
[1758647052989,0.3774,4179.3,4179.2,3.4568]
[1758647053592,3.2078,4179.9,4179.3,0.47983]
[1758647053593,0.3774,4179.5,4179.3,0.47983]
[1758647053803,0.2531,4179.6,4179.5,0.5095]
[1758647054000,0.6305,4179.6,4179.5,0.7585]
[1758647054889,0.3774,4179.6,4179.5,0.8376]
[1758647055495,0.5355,4180.0,4179.9,0.58857]
[1758647055693,0.5355,4180.0,4179.9,0.83757]
[1758647056795,0.5355,4180.0,4179.9,0.88697]
[1758647056990,0.3774,4180.4,4180.3,0.58853]
[1758647057191,0.3774,4180.4,4180.3,4.04533]
[1758647057499,0.8724,4180.4,4180.3,3.4568]
[1758647057889,0.8724,4180.4,4180.3,3.2869]
[1758647058086,0.8724,4180.4,4180.3,3.615]
[1758647058294,0.3774,4180.4,4180.3,3.615]
[1758647058492,0.6305,4180.4,4180.3,3.615]
[1758647058692,0.8724,4180.4,4180.3,3.4568]
[1758647060092,1.30272,4180.4,4180.3,3.2078]
[1758647060291,0.1586,4179.5,4179.3,3.2078]
[1758647060493,0.6536,4179.5,4179.4,0.249]
[1758647060692,1.031,4179.5,4179.4,0.249]
[1758647061099,1.46142,4179.5,4179.4,0.249]
[1758647061301,1.30283,4179.4,4179.3,3.2078]
[1758647061687,1.30283,4179.4,4179.2,0.249]
[1758647062302,0.8724,4179.4,4179.2,0.249]
[1758647062495,1.30283,4179.4,4179.2,0.249]
[1758647063597,0.8724,4179.4,4179.2,0.67944]
[1758647063804,1.30283,4179.4,4179.2,0.249]
[1758647064592,0.8724,4179.4,4179.2,0.249]
[1758647064904,0.8873,4179.3,4179.2,0.249]
[1758647065502,0.8873,4179.3,4179.2,0.5085]
[1758647065503,0.43873146,4179.3,4179.2,0.5085]
[1758647065706,0.43873146,4179.3,4179.2,0.249]
[1758647066403,0.86917146,4179.3,4179.2,0.249]
[1758647066701,0.43045,4179.2,4178.8,3.63828]
[1758647066907,0.4983,4178.9,4178.8,3.63829]
[1758647067098,0.4983,4178.9,4178.8,3.88729]
[1758647067298,0.4983,4178.9,4178.8,3.7163]
[1758647067500,0.8873,4178.9,4178.8,4.77299]
[1758647067707,0.389,4179.4,4178.8,3.8373]
[1758647067898,0.2538,4179.1,4179.0,0.93566]
[1758647068099,0.6428,4179.1,4179.0,0.93566]
[1758647068602,0.2538,4179.2,4179.1,0.8857]
[1758647068914,0.6428,4179.2,4179.1,1.31616]
[1758647069200,0.4124,4179.5,4179.4,1.31612]
[1758647069404,0.4983,4179.5,4179.4,1.56512]
[1758647069605,0.2538,4180.0,4179.9,1.31607]
[1758647069907,0.6428,4180.2,4180.1,1.31605]
[1758647070202,0.8873,4180.2,4180.1,0.93555]
[1758647070606,0.1581,4180.5,4180.1,0.93555]
[1758647070607,0.8009,4180.5,4180.4,0.43032]
[1758647070910,0.6428,4180.5,4180.4,1.31602]
[1758647071207,3.3539,4181.0,4180.9,0.68977]
[1758647071208,0.7889,4181.0,4180.9,0.68977]
[1758647071505,0.4983,4181.5,4181.4,0.2595]
[1758647071710,0.4983,4181.8,4181.7,1.07018]
[1758647072194,0.4983,4181.8,4181.7,0.2595]
[1758647072399,0.4983,4181.8,4181.7,0.64]
[1758647072602,0.4983,4181.8,4181.5,0.249]
[1758647072793,0.4983,4181.8,4181.4,3.2078]
[1758647072996,0.4983,4181.1,4181.0,0.2595]
[1758647073303,0.389,4181.4,4181.3,0.2595]
[1758647073505,0.389,4181.4,4180.8,0.249]
[1758647073506,1.31753,4181.4,4180.9,0.3805]
[1758647073710,0.389,4181.3,4181.0,0.43026]
[1758647073903,0.8873,4181.1,4181.0,1.07026]
[1758647074908,0.8873,4181.1,4181.0,1.31596]
[1758647075403,0.8873,4181.1,4181.0,0.8857]
[1758647075904,0.8873,4181.1,4180.7,3.5883]
[1758647076106,0.8873,4180.9,4180.8,0.249]
[1758647076306,0.8873,4180.9,4180.8,0.5085]
[1758647076706,0.8873,4180.9,4180.8,0.2595]
[1758647077406,0.8873,4180.9,4180.8,0.64]
[1758647078908,0.8873,4180.9,4180.8,0.8857]
[1758647079114,3.2078,4181.4,4180.7,3.88709]
[1758647079115,3.4616,4181.4,4181.3,0.8857]
[1758647079308,3.2078,4181.4,4181.3,1.1337]
[1758647079702,3.4616,4181.4,4181.3,1.1337]
[1758647080107,3.2078,4181.4,4181.3,1.1337]
[1758647080299,0.2538,4181.8,4181.7,0.68968]
[1758647080508,0.6428,4181.8,4181.7,0.8857]
[1758647081099,0.8873,4181.7,4181.6,0.248]
[1758647081309,0.8873,4181.7,4181.2,3.5883]
[1758647081505,0.8873,4181.3,4181.2,3.2078]
[1758647081700,0.92853,4181.3,4180.7,0.81079]
[1758647081914,0.8873,4181.0,4180.9,0.248]
[1758647082111,0.8873,4181.0,4180.9,0.5075]
[1758647082310,0.8873,4181.0,4180.9,0.888]
[1758647083015,0.2538,4181.0,4180.9,1.1337]
[1758647083312,0.8873,4181.0,4180.9,1.1337]
[1758647084216,1.0334,4181.0,4180.9,0.5075]
[1758647084608,1.0334,4181.0,4180.6,3.2078]
[1758647084806,0.4983,4180.7,4180.1,3.2078]
[1758647085013,1.31764,4180.2,4179.9,0.3805]
[1758647085209,0.1461,4180.5,4179.8,0.248]
[1758647085210,0.8873,4179.9,4179.8,0.248]
[1758647085812,0.8873,4179.9,4179.6,3.2078]
[1758647086012,0.4983,4179.7,4179.6,3.2078]
[1758647086211,0.8873,4179.7,4179.6,3.2078]
[1758647086413,0.8873,4179.7,4179.6,3.4673]
[1758647086716,0.8873,4179.7,4179.6,3.8478]
[1758647087615,0.8873,4179.7,4179.6,3.4673]
[1758647087811,0.8873,4179.7,4179.6,3.2078]
[1758647089008,0.8873,4179.3,4179.2,0.64]
[1758647089210,0.8873,4179.3,4179.2,0.888]
[1758647089615,0.8873,4179.3,4179.2,1.1337]
[1758647090519,0.2538,4179.8,4179.7,0.6262]
[1758647090818,0.8873,4179.8,4179.7,0.8857]
[1758647091014,0.8873,4179.8,4179.7,0.2595]
[1758647093822,0.6428,4179.5,4179.4,1.56412]
[1758647094021,0.6428,4179.5,4179.4,1.1337]
[1758647094221,0.6428,4179.5,4179.4,1.56412]
[1758647094425,0.8873,4179.5,4179.4,1.1337]
[1758647094617,1.0385,4179.5,4179.1,0.43045]
[1758647094925,0.8836,4179.3,4179.2,0.4903]
[1758647095417,0.8836,4179.3,4179.2,1.53785]
[1758647095921,0.4963,4179.3,4179.2,1.53785]
[1758647096222,0.2477,4179.3,4179.2,1.53785]
[1758647097221,0.635,4179.3,4179.2,1.53785]
[1758647097625,0.2477,4179.3,4179.2,1.53785]
[1758647099220,0.1461,4180.0,4179.9,0.2423]
[1758647099221,1.0297,4180.0,4179.9,0.2423]
[1758647099524,1.0297,4180.0,4179.9,0.8594]
[1758647099716,1.46006,4180.0,4179.9,0.8594]
[1758647099914,1.0297,4180.0,4179.9,0.8594]
[1758647100221,0.8836,4180.0,4179.9,1.28977]
[1758647100520,0.2477,4180.0,4179.9,1.28977]
[1758647100718,3.2078,4180.4,4180.3,1.28973]
[1758647100922,3.4555,4180.4,4180.3,1.28973]
[1758647101121,3.2078,4180.4,4180.3,1.28973]
[1758647101324,0.635,4180.8,4180.7,0.4792]
[1758647101631,3.2078,4180.9,4180.8,0.43028]
[1758647101925,3.2078,4180.9,4180.8,1.28968]
[1758647102126,0.8836,4181.4,4181.3,0.2423]
[1758647102528,0.8836,4181.4,4181.3,0.8594]
[1758647103125,1.46506,4181.0,4180.6,0.3802]
[1758647103428,0.6475,4181.0,4180.9,0.6225]
[1758647103620,0.2477,4181.3,4181.2,1.04733]
[1758647103923,0.2477,4181.3,4181.2,0.8594]
[1758647104127,0.43025,4181.1,4181.0,0.2423]
[1758647104322,0.3989,4181.0,4180.9,0.248]
[1758647104625,0.8836,4180.6,4180.5,3.2078]
[1758647105323,0.1512,4181.0,4180.5,4.2222]
[1758647105524,0.635,4181.0,4180.9,0.8594]
[1758647105817,3.2078,4181.2,4180.9,0.8594]
[1758647106021,0.43023,4181.3,4181.2,0.3802]
[1758647106215,0.3873,4181.2,4180.0,0.155]
[1758647106421,0.2477,4180.7,4180.6,1.1074]
[1758647106821,0.6475,4181.5,4181.4,0.2423]
[1758647107022,1.0348,4181.5,4181.4,0.6225]
[1758647107222,0.4963,4181.5,4181.4,0.8594]
[1758647107818,0.8836,4181.5,4181.4,0.8594]
[1758647108020,3.2078,4181.7,4181.6,0.4792]
[1758647108220,3.8428,4181.7,4181.6,0.8594]
[1758647108618,4.0914,4181.7,4181.6,0.6225]
[1758647108826,0.8836,4181.2,4181.1,0.8594]
[1758647109428,0.4963,4181.2,4181.1,0.8594]
[1758647109825,0.8836,4181.2,4181.1,0.8594]
[1758647110033,3.63799,4181.7,4181.1,0.4792]
[1758647110228,3.4555,4181.7,4181.6,0.8594]
[1758647110529,4.0914,4181.7,4181.6,0.8594]
[1758647110730,0.3873,4182.6,4182.2,0.43013]
[1758647110937,0.2477,4182.4,4182.3,0.8594]
[1758647111231,0.4969,4182.1,4182.0,3.4558]
[1758647111421,0.8598,4182.1,4182.0,3.6999]
[1758647111627,0.8598,4182.1,4182.0,4.0688]
[1758647111925,3.8187,4182.7,4182.0,4.4602]
[1758647112130,1.2899,4182.6,4182.5,0.8566]
[1758647112427,0.8598,4182.6,4182.5,0.8566]
[1758647112930,3.2078,4183.2,4182.5,0.6355]
[1758647113132,4.0676,4183.2,4183.1,0.8566]
[1758647113336,3.7047,4183.2,4183.1,0.8566]
[1758647113727,4.0676,4183.2,4183.1,0.8566]
[1758647113929,3.2078,4183.2,4183.1,0.8566]
[1758647114219,0.3629,4183.7,4183.1,1.1046]
[1758647114220,3.5707,4183.7,4183.1,1.1046]
[1758647114424,4.00068,4183.7,4183.1,1.1046]
[1758647114618,0.2417,4183.2,4183.1,0.7357]
[1758647114828,0.2417,4183.2,4183.1,1.1046]
[1758647115324,0.2417,4183.2,4183.1,4.3124]
[1758647115926,0.6046,4183.5,4183.4,0.2441]
[1758647116131,0.6046,4183.5,4183.4,0.8566]
[1758647117021,0.3629,4183.8,4183.4,0.4877]
[1758647117228,0.6046,4183.5,4183.4,0.4877]
[1758647117627,0.8598,4183.5,4183.4,0.4877]
[1758647118032,0.8598,4183.5,4183.4,0.8566]
[1758647120931,3.2078,4184.2,4183.8,0.4877]
[1758647121129,3.2078,4184.2,4184.0,0.8566]
[1758647121332,0.8598,4184.1,4184.0,0.8566]
[1758647121942,0.8598,4184.1,4184.0,1.28655]
[1758647122128,3.2078,4184.2,4184.1,0.79884]
[1758647122437,3.2078,4184.2,4184.1,0.8566]
[1758647122438,0.6046,4184.2,4184.1,0.8566]
[1758647123040,1.28973,4184.2,4184.1,0.8566]
[1758647123242,1.28973,4184.2,4184.1,0.4877]
[1758647123429,3.2078,4184.3,4184.2,0.42993]
[1758647123733,3.4591,4184.3,4184.2,1.31623]
[1758647123933,4.0626,4184.3,4184.2,0.8863]
[1758647124334,4.0626,4184.3,4184.2,1.31623]
[1758647124531,1.28472,4184.3,4184.2,0.8863]
[1758647124839,0.2513,4183.9,4183.8,0.94267]
[1758647125038,0.6053,4183.9,4183.8,1.56427]
[1758647125238,0.6053,4183.9,4183.8,0.8863]
[1758647125440,0.8548,4183.7,4183.6,3.63779]
[1758647125637,0.8548,4183.7,4183.0,3.7292]
[1758647125847,0.8548,4183.3,4183.2,0.93603]
[1758647126339,0.8548,4183.3,4183.2,0.506]
[1758647126340,1.28482,4183.3,4183.2,0.506]
[1758647126539,0.8548,4183.3,4183.2,0.506]
[1758647126739,1.43215,4184.0,4183.9,0.258]
[1758647126944,0.2513,4184.0,4183.9,0.8863]
[1758647127143,3.2078,4184.1,4183.9,1.31626]
[1758647127346,3.2078,4184.1,4184.0,0.8863]
[1758647127542,3.4591,4184.1,4184.0,0.8863]
[1758647127740,4.24304,4184.1,4184.0,0.8863]
[1758647127937,4.49254,4184.1,4184.0,0.258]
[1758647128335,1.28478,4183.7,4183.6,0.258]
[1758647128544,1.28478,4183.7,4183.6,0.506]
[1758647129042,0.8548,4183.7,4183.6,0.506]
[1758647129248,0.8548,4183.7,4183.6,0.8796]
[1758647129840,0.2513,4183.7,4183.6,1.56429]
[1758647130150,3.4591,4184.1,4184.0,1.46495]
[1758647130545,0.2513,4184.3,4184.2,0.94262]
[1758647130848,0.5014,4184.5,4184.4,0.94261]
[1758647130849,0.6053,4184.5,4184.4,0.94261]
[1758647131049,0.6053,4184.5,4184.4,1.31621]
[1758647131346,0.354,4184.5,4184.4,0.3736]
[1758647131737,3.2078,4184.7,4184.6,0.80349]
[1758647131938,3.2078,4184.7,4184.6,0.3736]
[1758647132145,3.5618,4184.7,4184.6,0.3736]
[1758647133140,3.2078,4184.7,4184.6,0.3736]
[1758647133445,3.2078,4185.2,4185.0,0.3736]
[1758647133647,0.354,4185.1,4185.0,0.3736]
[1758647133843,0.8548,4185.1,4185.0,0.6316]
[1758647134345,0.6053,4185.4,4185.3,0.2547]
[1758647134552,0.8548,4185.4,4185.3,0.5127]
[1758647135254,0.8548,4185.4,4185.3,0.258]
[1758647135753,0.8548,4185.1,4185.0,0.258]
[1758647135947,0.8548,4185.1,4185.0,0.8863]
[1758647136157,1.0022,4185.5,4185.4,0.258]
[1758647136347,0.8548,4185.5,4185.4,0.8863]
[1758647137746,0.8548,4185.5,4185.4,1.31611]
[1758647138254,0.354,4185.9,4185.4,0.5127]
[1758647138553,0.8548,4185.5,4185.4,1.1343]
[1758647138944,0.78385,4185.0,4184.8,0.3736]
[1758647139169,0.5008,4184.6,4184.3,4.01132]
[1758647139350,1.43211,4184.5,4184.4,0.506]
[1758647139550,1.43211,4184.5,4184.4,0.258]
[1758647139857,0.8548,4184.3,4184.2,0.506]
[1758647140552,0.8548,4184.3,4184.2,1.1343]
[1758647140956,0.8548,4184.3,4184.2,0.506]
[1758647141552,0.354,4184.2,4183.6,3.2078]
[1758647141756,0.5008,4184.1,4184.0,0.68794]
[1758647141955,0.8548,4184.1,4184.0,1.06154]
[1758647142559,0.8548,4184.1,4184.0,0.6316]
[1758647142752,0.8548,4184.1,4183.9,0.248]
[1758647142951,1.0022,4184.0,4183.9,0.248]
[1758647143558,0.5014,4184.5,4184.1,0.42994]
[1758647143765,0.2513,4184.2,4184.1,1.31624]
[1758647144059,0.6053,4184.2,4184.1,1.31624]
[1758647144362,0.5008,4184.7,4184.6,0.258]
[1758647144657,0.5008,4184.7,4183.8,1.07492]
[1758647144658,0.8548,4183.9,4183.8,0.8863]
[1758647144965,0.8548,4183.9,4183.8,1.1343]
[1758647145553,0.6053,4183.9,4183.8,1.1343]
[1758647145747,0.5008,4184.0,4183.9,0.258]
[1758647145953,0.6482,4184.0,4183.6,3.5814]
[1758647146148,0.6482,4184.0,4183.0,0.1487]
[1758647146149,0.354,4183.4,4182.9,3.2078]
[1758647146361,0.2513,4183.0,4182.9,4.52416]
[1758647146557,0.354,4183.4,4183.3,0.258]
[1758647146558,0.6053,4183.4,4183.3,0.258]
[1758647146759,0.78397,4183.9,4183.3,0.5127]
[1758647146952,0.354,4183.8,4183.3,0.43002]
[1758647147158,0.6053,4183.6,4183.5,0.8863]
[1758647147757,0.8548,4183.6,4183.5,0.258]
[1758647148062,1.28479,4183.6,4183.5,0.258]
[1758647148568,1.28479,4183.6,4183.5,0.6316]
[1758647148755,1.28485,4183.0,4182.9,3.4658]
[1758647148955,0.1474,4183.5,4182.9,3.4658]
[1758647148956,0.43002,4183.3,4182.9,4.52416]
[1758647149162,0.6053,4183.3,4183.2,0.8863]
[1758647149464,0.2513,4183.3,4183.2,0.8863]
[1758647149764,0.6053,4183.3,4183.2,0.8863]
[1758647150261,0.2513,4183.3,4183.2,1.31633]
[1758647150465,0.2513,4183.4,4183.3,0.2547]
[1758647150667,0.6053,4183.4,4183.3,0.8863]
[1758647150959,1.28481,4183.4,4183.3,0.258]
[1758647151164,1.28484,4183.2,4183.1,0.248]
[1758647151551,0.2513,4182.9,4182.8,0.43007]
[1758647151768,0.8548,4182.5,4182.4,0.8863]
[1758647151961,0.8548,4182.5,4182.4,1.1343]
[1758647152264,0.2513,4182.9,4182.8,0.43007]
[1758647152463,3.4591,4183.2,4183.1,0.5127]
[1758647152659,0.354,4183.5,4183.2,0.43003]
[1758647152964,1.0353,4183.5,4183.4,0.8863]
[1758647153163,1.2848,4183.5,4183.4,0.8863]
[1758647153463,1.4263,4183.5,4183.4,0.258]
[1758647153767,0.8537,4182.9,4182.8,3.4442]
[1758647154062,0.8537,4182.9,4182.8,4.37617]
[1758647154263,0.8537,4182.9,4182.8,4.72297]
[1758647154464,0.4905,4182.9,4182.8,4.72297]
[1758647155054,0.8537,4183.2,4182.8,3.2078]
[1758647155258,0.6032,4182.6,4182.5,0.8371]
[1758647155459,0.6032,4182.6,4182.5,1.0851]
[1758647155664,0.4905,4183.3,4183.2,0.2364]
[1758647155863,0.8537,4183.3,4183.2,0.5832]
[1758647156063,0.8537,4183.3,4183.2,0.8371]
[1758647156667,0.8537,4183.3,4183.2,0.2364]
[1758647156861,1.28372,4183.3,4183.2,0.2364]
[1758647157363,0.8537,4183.3,4183.2,0.2364]
[1758647157565,0.43001,4183.4,4183.2,0.8371]
[1758647157859,0.4905,4183.3,4183.2,0.4903]
[1758647158064,0.8537,4183.3,4183.2,0.4903]
[1758647158460,0.8537,4183.3,4183.2,0.8371]
[1758647158662,1.28372,4183.3,4183.2,0.8371]
[1758647159068,0.8537,4183.3,4183.2,0.8371]
[1758647159363,1.28372,4183.3,4183.2,0.2364]
[1758647159567,0.4905,4182.9,4182.8,4.12817]
[1758647159772,0.24,4182.9,4182.8,4.72297]
[1758647160162,0.4905,4182.9,4182.8,4.2929]
[1758647160466,0.8537,4182.4,4182.3,4.46913]
[1758647160763,0.8537,4182.4,4182.3,4.72303]
[1758647160970,0.24,4182.6,4182.5,1.2672]
[1758647161161,0.3632,4182.9,4182.8,0.8371]
[1758647161162,0.6032,4182.9,4182.8,0.8371]
[1758647161364,0.8537,4182.9,4182.8,0.8371]
[1758647161565,1.28376,4182.9,4182.8,0.8371]
[1758647162067,0.8537,4182.9,4182.8,1.26717]
[1758647162268,0.67003,4183.2,4183.1,0.8371]
[1758647162463,1.03323,4183.2,4183.1,0.8371]
[1758647162667,1.28373,4183.2,4183.1,0.8371]
[1758647163268,0.43006,4183.0,4182.8,0.248]
[1758647163472,1.28376,4182.9,4182.8,0.248]
[1758647163674,1.28376,4182.9,4182.8,0.4844]
[1758647163864,0.8537,4182.9,4182.8,0.4844]
[1758647164059,0.8537,4182.9,4182.8,1.51517]
[1758647164267,0.24,4182.9,4182.8,1.51517]
[1758647164661,0.24,4182.9,4182.8,1.0851]
[1758647165060,0.6032,4182.9,4182.8,1.51517]
[1758647165266,0.24,4182.9,4182.8,1.51517]
[1758647166972,0.24,4182.9,4182.8,0.8371]
[1758647167172,0.24,4182.7,4182.6,0.2364]
[1758647167479,0.92059,4182.7,4182.6,0.2364]
[1758647167673,1.42531,4182.5,4182.4,0.2364]
[1758647167973,0.92064,4182.2,4182.1,0.2364]
[1758647168363,0.3632,4182.5,4182.3,0.43012]
[1758647168564,3.811,4182.8,4182.7,0.4903]
[1758647168766,0.6032,4182.8,4182.7,0.8371]
[1758647169163,0.8537,4182.8,4182.7,0.8371]